[Event "WSCC 65 Open 2017"]
[Site "?"]
[Date "2017.11.16"]
[Round "9"]
[White "Pritchett, Craig W"]
[Black "Malisov, Boris"]
[Result "1/2-1/2"]
[ECO "B06"]
[WhiteElo "2280"]
[BlackElo "2240"]
[PlyCount "129"]
[EventDate "2017.??.??"]
[EventType "swiss"]
[EventCountry "ITA"]
[SourceTitle "Acqui Terme"]
[TimeControl "40/5400+30:1800+30"]
[WhiteClock "0:02:18"]
[BlackClock "0:01:13"]

1. e4 {[%emt 0:00:00]} g6 {[%emt 0:01:11]} 2. d4 {[%emt 0:00:00]} Bg7 {[%emt 0:00:08]} 3. Nf3 {[%emt 0:00:42]} c6 {[%emt 0:01:07]} 4. Bd3 {[%emt 0:04:21]} d5 {[%emt 0:00:43]} 5. e5 {[%emt 0:00:16]} Na6 {[%emt 0:01:02]} 6. c3 {[%emt 0:02:08]} Nc7 {[%emt 0:01:30]} 7. O-O {[%emt 0:00:38]} Nh6 {[%emt 0:00:58]} 8. Re1 {[%emt 0:04:33]} O-O {[%emt 0:00:58]} 9. h3 {[%emt 0:04:07]} f6 {[%emt 0:05:03]} 10. Bf4 {[%emt 0:05:36]} Ne6 {[%emt 0:00:04]} 11. Bh2 {[%emt 0:03:06]} f5 {[%emt 0:06:18]} 12. c4 {[%emt 0:05:37]} b6 {[%emt 0:00:44]} 13. Nc3 {[%emt 0:00:24]} Bb7 {[%emt 0:00:28]} 14. cxd5 {[%emt 0:07:42]} cxd5 {[%emt 0:01:16]} 15. Qa4 {[%emt 0:00:39]} f4 {[%emt 0:11:05]} 16. Bb5 {[%emt 0:05:42]} Nf5 {[%emt 0:39:51]} 17. Rad1 {[%emt 0:16:14]} Bh6 {[%emt 0:01:50]} 18. Bc6 {[%emt 0:09:31]} Bxc6 {[%emt 0:05:03]} 19. Qxc6 {[%emt 0:00:05]} Nc7 {[%emt 0:00:35]} 20. e6 {[%emt 0:03:17]} Qd6 {[%emt 0:02:36]} 21. Ne5 {[%emt 0:08:08]} Qxc6 {[%emt 0:01:16]} 22. Nxc6 {[%emt 0:00:05]} Rf6 {[%emt 0:05:43]} 23. Re5 {[%emt 0:08:23]} Rxe6 {[%emt 0:00:59]} 24. Rxe6 {[%emt 0:00:10]} Nxe6 {[%emt 0:00:08]} 25. Nxd5 {[%emt 0:00:18]} Kf8 {[%emt 0:05:43]} 26. b4 {[%emt 0:04:01]} g5 {[%emt 0:02:18]} 27. g3 {[%emt 0:01:58]} Bg7 {[%emt 0:02:03]} 28. gxf4 {[%emt 0:00:09]} gxf4 {[%emt 0:00:08]} 29. Nxf4 {[%emt 0:00:53]} Nexd4 {[%emt 0:01:39]} 30. Nxd4 {[%emt 0:00:14]} Nxd4 {[%emt 0:00:02]} 31. Rxd4 {[%emt 0:00:19]} Bxd4 {[%emt 0:00:01]} 32. Ne6+ {[%emt 0:00:07]} Kf7 {[%emt 0:00:14]} 33. Nxd4 {[%emt 0:00:02]} Rc8 {[%emt 0:00:11]} 34. Nb5 {[%emt 0:04:15]} Rc4 {[%emt 0:00:02]} 35. a3 {[%emt 0:01:17]} a6 {[%emt 0:00:21]} 36. Nc7 {[%emt 0:00:26]} a5 {[%emt 0:00:17]} 37. bxa5 {[%emt 0:01:04]} bxa5 {[%emt 0:00:02]} 38. Be5 {[%emt 0:00:56]} Re4 {[%emt 0:00:44]} 39. Bc3 {[%emt 0:00:47]} Ra4 {[%emt 0:01:01]} 40. Nb5 {[%emt 0:00:06]} Ke6 {[%emt 0:30:33]} 41. Bb2 {[%emt 0:31:10]} Rh4 {[%emt 0:00:51]} 42. Kg2 {[%emt 0:00:00]} Kd5 {[%emt 0:00:00]} 43. Kg3 {[%emt 0:00:00]} Rh6 {[%emt 0:00:00]} 44. Nc3+ {[%emt 0:00:00]} Kc4 {[%emt 0:00:00]} 45. Ne2 {[%emt 0:00:00]} Rb6 {[%emt 0:00:00]} 46. Bc1 {[%emt 0:00:00]} Kd3 {[%emt 0:00:00]} 47. Nf4+ {[%emt 0:00:00]} Kc4 {[%emt 0:00:00]} 48. Kf3 {[%emt 0:00:00]} e5 {[%emt 0:00:00]} 49. Ng2 {[%emt 0:00:00]} Rb3+ {[%emt 0:00:00]} 50. Ke4 {[%emt 0:00:00]} Rxh3 {[%emt 0:00:00]} 51. Ne3+ {[%emt 0:01:58]} Kb3 {[%emt 0:00:00]} 52. Kxe5 {[%emt 0:00:23]} Rf3 {[%emt 0:00:00]} 53. Bd2 {[%emt 0:01:19]} a4 {[%emt 0:00:00]} 54. Bb4 {[%emt 0:00:34]} Rxf2 {[%emt 0:00:00]} 55. Ng4 {[%emt 0:01:25]} Re2+ {[%emt 0:00:00]} 56. Kf5 {[%emt 0:00:35]} h5 {[%emt 0:00:00]} 57. Ne5 {[%emt 0:00:39]} h4 {[%emt 0:00:00]} 58. Nd3 {[%emt 0:00:14]} Kc4 {[%emt 0:01:10]} 59. Nf4 {[%emt 0:00:53]} Rh2 {[%emt 0:05:41]} 60. Kg4 {[%emt 0:00:13]} Kb3 {[%emt 0:01:00]} 61. Nd3 {[%emt 0:00:51]} Kc4 {[%emt 0:01:06]} 62. Nf4 {[%emt 0:00:10]} Rh1 {[%emt 0:02:36]} 63. Nh3 {[%emt 0:00:48]} Kb3 {[%emt 0:01:26]} 64. Nf4 {[%emt 0:00:13]} Ra1 {[%emt 0:01:32]} 65. Nd3 {[%emt 0:00:31]} 1/2-1/2

[Event "WSCC 65 Open 2017"]
[Site "?"]
[Date "2017.11.16"]
[Round "9"]
[White "Hess, Christian"]
[Black "Vasiukov, Evgeni"]
[Result "0-1"]
[ECO "A05"]
[WhiteElo "2236"]
[BlackElo "2404"]
[PlyCount "130"]
[EventDate "2017.??.??"]
[EventType "swiss"]
[EventCountry "ITA"]
[SourceTitle "Acqui Terme"]
[TimeControl "40/5400+30:1800+30"]

1. Nf3 Nf6 2. c4 d6 3. d4 c6 4. Nc3 Bf5 5. g3 h6 6. Bg2 Nbd7 7. d5 c5 8. Nh4 Bh7 9. f4 a6 10. a4 Qc7 11. O-O Rg8 12. Nf3 Ne4 13. Bh3 Ndf6 14. Nxe4 Nxe4 15. Nd2 Nf6 16. a5 g5 17. Qa4+ Kd8 18. e4 gxf4 19. Rxf4 h5 20. Bf5 Bxf5 21. Rxf5 h4 22. Kg2 hxg3 23. hxg3 Bh6 24. Qc2 Ng4 25. Nf3 e6 26. Rh5 Bxc1 27. Qxc1 Qe7 28. Qf4 e5 29. Qd2 Nf6 30. Rh4 Kc7 31. b4 Nd7 32. Rb1 f5 33. b5 axb5 34. cxb5 b6 35. Ra1 Qg7 36. Qf2 bxa5 37. Qe1 f4 38. g4 a4 39. g5 Nb6 40. Qc3 Rh8 41. Rxf4 Kb7 42. Rf6 Qd7 43. Re6 Rhe8 44. Rf6 Rf8 45. Re6 Rae8 46. Qa5 Ra8 47. Qc3 Rae8 48. Qa5 Rxe6 49. Qa6+ Kc7 50. Qa7+ Kc8 51. Qa6+ Qb7 52. dxe6 Re8 53. Rh1 Qxa6 54. bxa6 Kc7 55. Rh7+ Kc6 56. Nd2 Rxe6 57. a7 Re8 58. Kf2 Rg8 59. Ke2 Rxg5 60. Nc4 Rg8 61. Na5+ Kb5 62. Nb7 a3 63. Nxd6+ Kc6 64. Nb7 c4 65. Na5+ Kb5 0-1

[Event "WSCC 65 Open 2017"]
[Site "?"]
[Date "2017.11.16"]
[Round "9"]
[White "Primbetov, Marat"]
[Black "Van Riemsdijk, Herman C"]
[Result "0-1"]
[ECO "C77"]
[WhiteElo "2222"]
[BlackElo "2284"]
[PlyCount "94"]
[EventDate "2017.??.??"]
[EventType "swiss"]
[EventCountry "ITA"]
[SourceTitle "Acqui Terme"]
[TimeControl "40/5400+30:1800+30"]
[WhiteClock "0:27:14"]
[BlackClock "0:32:30"]

1. e4 {[%emt 0:00:00]} e5 {[%emt 0:00:15]} 2. Nf3 {[%emt 0:01:05]} Nc6 {[%emt 0:00:09]} 3. Bb5 {[%emt 0:00:31]} a6 {[%emt 0:00:08]} 4. Ba4 {[%emt 0:00:08]} Nf6 {[%emt 0:00:10]} 5. d3 {[%emt 0:00:47]} b5 {[%emt 0:00:33]} 6. Bb3 {[%emt 0:00:01]} Be7 {[%emt 0:00:12]} 7. Nbd2 {[%emt 0:00:57]} d6 {[%emt 0:00:24]} 8. c3 {[%emt 0:00:07]} Na5 {[%emt 0:00:29]} 9. Bc2 {[%emt 0:00:02]} c5 {[%emt 0:00:10]} 10. O-O {[%emt 0:00:38]} O-O {[%emt 0:00:10]} 11. Re1 {[%emt 0:00:04]} Nd7 {[%emt 0:00:19]} 12. Nf1 {[%emt 0:00:25]} Bf6 {[%emt 0:02:31]} 13. Ng3 {[%emt 0:03:04]} g6 {[%emt 0:00:14]} 14. Bh6 {[%emt 0:00:23]} Re8 {[%emt 0:00:44]} 15. a3 {[%emt 0:01:48]} Nb6 {[%emt 0:00:36]} 16. h3 {[%emt 0:03:21]} Nc6 {[%emt 0:21:49]} 17. Be3 {[%emt 0:12:37]} a5 {[%emt 0:10:36]} 18. Nh2 {[%emt 0:08:50]} Be6 {[%emt 0:20:05]} 19. Ng4 {[%emt 0:00:51]} Bg7 {[%emt 0:01:55]} 20. f4 {[%emt 0:06:11]} exf4 {[%emt 0:04:14]} 21. Bxf4 {[%emt 0:00:13]} Ne5 {[%emt 0:01:35]} 22. Nxe5 {[%emt 0:05:03]} dxe5 {[%emt 0:00:13]} 23. Be3 {[%emt 0:00:19]} Rc8 {[%emt 0:05:06]} 24. Qf3 {[%emt 0:01:12]} Qf6 {[%emt 0:04:15]} 25. Qe2 {[%emt 0:01:45]} Qh4 {[%emt 0:00:21]} 26. Nf1 {[%emt 0:03:54]} Rc6 {[%emt 0:06:11]} 27. Nd2 {[%emt 0:01:26]} Qe7 {[%emt 0:02:51]} 28. Nf3 {[%emt 0:00:40]} a4 {[%emt 0:01:43]} 29. Qf2 {[%emt 0:02:48]} Rec8 {[%emt 0:02:08]} 30. Rf1 {[%emt 0:00:26]} Bb3 {[%emt 0:01:19]} 31. Rac1 {[%emt 0:01:58]} Rd8 {[%emt 0:02:09]} 32. Bb1 {[%emt 0:00:55]} Nd7 {[%emt 0:00:35]} 33. d4 {[%emt 0:03:30]} cxd4 {[%emt 0:06:51]} 34. cxd4 {[%emt 0:01:29]} Rxc1 {[%emt 0:00:24]} 35. Rxc1 {[%emt 0:00:16]} exd4 {[%emt 0:00:09]} 36. Nxd4 {[%emt 0:01:17]} Ne5 {[%emt 0:01:38]} 37. Kh1 {[%emt 0:06:39]} Qd7 {[%emt 0:01:24]} 38. Rf1 {[%emt 0:24:36]} Ng4 {[%emt 0:01:56]} 39. hxg4 {[%emt 0:00:33]} Bxd4 {[%emt 0:00:06]} 40. g5 {[%emt 0:00:49]} Bxe3 {[%emt 0:30:26]} 41. Qxe3 {[%emt 0:30:02]} Qd2 {[%emt 0:00:23]} 42. Qc3 {[%emt 0:06:18]} Qxg5 {[%emt 0:01:54]} 43. e5 {[%emt 0:01:02]} Bd5 {[%emt 0:01:02]} 44. Qh3 {[%emt 0:00:00]} Qxe5 {[%emt 0:00:00]} 45. Bd3 {[%emt 0:00:00]} Qxb2 {[%emt 0:00:00]} 46. Rb1 {[%emt 0:00:00]} Qxg2+ {[%emt 0:00:00]} 47. Qxg2 {[%emt 0:00:00]} Bxg2+ {[%emt 0:00:00]} 0-1

[Event "WSCC 65 Open 2017"]
[Site "?"]
[Date "2017.11.16"]
[Round "9"]
[White "Hardicsay, Peter"]
[Black "Lisenko, Alexander V"]
[Result "1/2-1/2"]
[ECO "A14"]
[WhiteElo "2213"]
[BlackElo "2372"]
[PlyCount "58"]
[EventDate "2017.??.??"]
[EventType "swiss"]
[EventCountry "ITA"]
[SourceTitle "Acqui Terme"]
[TimeControl "40/5400+30:1800+30"]

1. c4 c5 2. Nf3 Nc6 3. Nc3 e6 4. g3 Nf6 5. Bg2 d5 6. cxd5 Nxd5 7. O-O Be7 8. d4 Nxc3 9. bxc3 Qa5 10. Bb2 O-O 11. e3 Rd8 12. Nd2 Qc7 13. Qh5 b6 14. Rfd1 Bb7 15. Rac1 Rac8 16. Nb3 g6 17. Qe2 Bf8 18. c4 cxd4 19. exd4 Qe7 20. Re1 Bh6 21. Rcd1 Qf8 22. d5 exd5 23. Bxd5 Ba8 24. Qf3 Bg7 25. Bf6 Bxf6 26. Qxf6 Qg7 27. Qf4 Qf8 28. Qf6 Qg7 29. Qf4 Qf8 1/2-1/2

[Event "WSCC 65 Open 2017"]
[Site "?"]
[Date "2017.11.17"]
[Round "10"]
[White "Vasiukov, Evgeni"]
[Black "Shevelev, Arkady"]
[Result "1/2-1/2"]
[ECO "B10"]
[WhiteElo "2404"]
[BlackElo "2280"]
[PlyCount "48"]
[EventDate "2017.??.??"]
[EventType "swiss"]
[EventCountry "ITA"]
[SourceTitle "Acqui Terme"]
[TimeControl "40/5400+30:1800+30"]
[WhiteClock "1:31:13"]
[BlackClock "1:28:02"]

1. e4 c6 2. d3 {[%emt 0:00:22]} d5 {[%emt 0:01:04]} 3. Nd2 {[%emt 0:00:02]} Qc7 {[%emt 0:00:25]} 4. g3 {[%emt 0:00:37]} Nf6 {[%emt 0:01:58]} 5. Bg2 {[%emt 0:00:09]} dxe4 {[%emt 0:01:43]} 6. dxe4 {[%emt 0:00:09]} e5 {[%emt 0:00:16]} 7. Ngf3 {[%emt 0:00:39]} Bg4 {[%emt 0:00:32]} 8. h3 {[%emt 0:00:49]} Bh5 {[%emt 0:00:30]} 9. g4 Bg6 10. Nh4 Bc5 11. Qe2 a5 12. Nf1 Nbd7 13. Ng3 Nf8 14. g5 N6d7 15. Nhf5 Ne6 16. h4 O-O-O 17. Qg4 Kb8 18. O-O f6 19. a3 fxg5 20. hxg5 Bxf5 21. exf5 Nf4 22. Bxf4 exf4 23. Nh5 g6 24. Nxf4 gxf5 1/2-1/2

[Event "WSCC 65 Open 2017"]
[Site "?"]
[Date "2017.11.18"]
[Round "10"]
[White "Buchal, Stephan"]
[Black "Fritsch, Rolf"]
[Result "1/2-1/2"]
[ECO "A20"]
[WhiteElo "2347"]
[BlackElo "2213"]
[PlyCount "55"]
[EventDate "2017.??.??"]
[EventType "swiss"]
[EventCountry "ITA"]
[SourceTitle "Acqui Terme"]
[TimeControl "40/5400+30:1800+30"]
[WhiteClock "0:05:19"]
[BlackClock "0:06:07"]

1. c4 {[%emt 0:00:00]} e5 {[%emt 0:00:21]} 2. g3 {[%emt 0:00:00]} c5 {[%emt 0:00:45]} 3. Bg2 {[%emt 0:00:18]} Nc6 {[%emt 0:00:04]} 4. Nc3 {[%emt 0:00:51]} g6 {[%emt 0:00:28]} 5. d3 {[%emt 0:00:38]} Bg7 {[%emt 0:00:14]} 6. Nf3 {[%emt 0:03:10]} Nge7 {[%emt 0:00:22]} 7. O-O {[%emt 0:00:44]} O-O {[%emt 0:00:28]} 8. a3 {[%emt 0:01:21]} d6 {[%emt 0:07:05]} 9. Rb1 {[%emt 0:00:28]} a5 {[%emt 0:17:57]} 10. Bd2 {[%emt 0:07:39]} h6 {[%emt 0:02:54]} 11. Ne1 {[%emt 0:01:14]} f5 {[%emt 0:05:44]} 12. Nc2 {[%emt 0:01:38]} a4 {[%emt 0:30:18]} 13. Ne3 {[%emt 0:21:21]} Nd4 {[%emt 0:03:03]} 14. Ned5 {[%emt 0:00:42]} Nxd5 {[%emt 0:02:49]} 15. Nxd5 {[%emt 0:09:18]} Nb3 {[%emt 0:02:40]} 16. Bc3 {[%emt 0:10:43]} Bd7 {[%emt 0:02:10]} 17. e3 {[%emt 0:01:55]} Rb8 {[%emt 0:04:16]} 18. f4 {[%emt 0:05:48]} b5 {[%emt 0:02:03]} 19. Qc2 {[%emt 0:03:32]} Kh8 {[%emt 0:01:39]} 20. cxb5 {[%emt 0:06:14]} Bxb5 {[%emt 0:01:03]} 21. Rf2 {[%emt 0:03:38]} Qd7 {[%emt 0:02:18]} 22. Re1 {[%emt 0:06:43]} Rbe8 {[%emt 0:02:10]} 23. Nb6 {[%emt 0:03:53]} Qc7 {[%emt 0:02:05]} 24. Nc4 {[%emt 0:00:39]} Bc6 {[%emt 0:02:13]} 25. Rff1 {[%emt 0:00:43]} Bxg2 {[%emt 0:01:22]} 26. Qxg2 {[%emt 0:00:11]} e4 {[%emt 0:00:34]} 27. Qc2 {[%emt 0:04:05]} Re6 {[%emt 0:00:48]} 28. Rd1 {[%emt 0:01:15]} 1/2-1/2

[Event "WSCC 65 Open 2017"]
[Site "?"]
[Date "2017.11.18"]
[Round "10"]
[White "Sarno, Spartaco"]
[Black "Bergstrom, Rolf"]
[Result "1-0"]
[ECO "A00"]
[WhiteElo "2327"]
[BlackElo "2270"]
[PlyCount "83"]
[EventDate "2017.??.??"]
[EventType "swiss"]
[EventCountry "ITA"]
[SourceTitle "Acqui Terme"]
[TimeControl "40/5400+30:1800+30"]
[WhiteClock "0:32:36"]
[BlackClock "0:29:04"]

1. g3 {[%emt 0:00:00]} e5 {[%emt 0:00:12]} 2. c4 {[%emt 0:00:00]} d6 {[%emt 0:00:06]} 3. Bg2 {[%emt 0:00:37]} f5 {[%emt 0:00:14]} 4. Nc3 {[%emt 0:00:33]} Nf6 {[%emt 0:00:08]} 5. e3 {[%emt 0:00:12]} Be7 {[%emt 0:00:22]} 6. Nge2 {[%emt 0:00:07]} O-O {[%emt 0:02:48]} 7. O-O {[%emt 0:00:09]} c6 {[%emt 0:00:30]} 8. d3 {[%emt 0:22:06]} Be6 {[%emt 0:02:11]} 9. f4 {[%emt 0:00:19]} Nbd7 {[%emt 0:01:32]} 10. b3 {[%emt 0:00:25]} Qb6 {[%emt 0:09:35]} 11. Qd2 {[%emt 0:09:01]} Rae8 {[%emt 0:02:45]} 12. Bb2 {[%emt 0:05:10]} Ng4 {[%emt 0:10:17]} 13. Nd1 {[%emt 0:02:26]} Bf6 {[%emt 0:01:25]} 14. d4 {[%emt 0:13:25]} exf4 {[%emt 0:03:34]} 15. exf4 {[%emt 0:08:04]} Bf7 {[%emt 0:01:10]} 16. h3 {[%emt 0:01:23]} Nh6 {[%emt 0:02:01]} 17. Bf3 {[%emt 0:07:39]} g6 {[%emt 0:19:13]} 18. Kg2 {[%emt 0:05:45]} Bg7 {[%emt 0:02:00]} 19. Nf2 {[%emt 0:00:46]} Nf6 {[%emt 0:02:43]} 20. Nc3 {[%emt 0:02:31]} d5 {[%emt 0:08:27]} 21. Ba3 {[%emt 0:04:44]} Ne4 {[%emt 0:00:08]} 22. Bxe4 {[%emt 0:00:16]} fxe4 {[%emt 0:02:06]} 23. Bxf8 {[%emt 0:01:47]} Rxf8 {[%emt 0:00:18]} 24. c5 {[%emt 0:00:16]} Qb4 {[%emt 0:08:25]} 25. Ncxe4 {[%emt 0:00:34]} Qxd4 {[%emt 0:00:08]} 26. Qxd4 {[%emt 0:03:43]} Bxd4 {[%emt 0:00:05]} 27. Nd6 {[%emt 0:01:50]} Bxa1 {[%emt 0:03:16]} 28. Rxa1 {[%emt 0:00:06]} b6 {[%emt 0:01:20]} 29. Rc1 {[%emt 0:00:18]} b5 {[%emt 0:01:55]} 30. Nd3 {[%emt 0:01:13]} d4 {[%emt 0:02:21]} 31. Nb4 {[%emt 0:02:39]} Nf5 {[%emt 0:05:04]} 32. Nxf5 {[%emt 0:00:06]} gxf5 {[%emt 0:00:06]} 33. Kf2 {[%emt 0:00:05]} Rc8 {[%emt 0:07:49]} 34. Rd1 {[%emt 0:00:25]} a5 {[%emt 0:00:07]} 35. Nc2 {[%emt 0:00:05]} a4 {[%emt 0:01:04]} 36. Nxd4 {[%emt 0:00:12]} Rd8 {[%emt 0:00:47]} 37. Rd2 {[%emt 0:00:29]} a3 {[%emt 0:01:02]} 38. Ke1 {[%emt 0:01:18]} Re8+ {[%emt 0:01:27]} 39. Re2 {[%emt 0:02:21]} Rxe2+ {[%emt 0:00:05]} 40. Kxe2 {[%emt 0:00:08]} Bd5 {[%emt 0:30:06]} 41. Kd2 {[%emt 0:30:55]} Be4 {[%emt 0:00:00]} 42. Kc3 {[%emt 0:00:00]} 1-0

[Event "WSCC 65 Open 2017"]
[Site "?"]
[Date "2017.11.18"]
[Round "10"]
[White "Mantovani, Renzo"]
[Black "Schnelzer, Reinhold"]
[Result "1-0"]
[ECO "A37"]
[WhiteElo "2307"]
[BlackElo "2208"]
[PlyCount "169"]
[EventDate "2017.??.??"]
[EventType "swiss"]
[EventCountry "ITA"]
[SourceTitle "Acqui Terme"]
[TimeControl "40/5400+30:1800+30"]
[WhiteClock "0:02:18"]
[BlackClock "0:17:35"]

1. c4 {[%emt 0:00:00]} c5 {[%emt 0:00:43]} 2. Nc3 {[%emt 0:00:09]} Nc6 {[%emt 0:00:08]} 3. Nf3 {[%emt 0:00:49]} g6 {[%emt 0:00:46]} 4. g3 {[%emt 0:02:20]} Bg7 {[%emt 0:00:17]} 5. Bg2 {[%emt 0:00:09]} e6 {[%emt 0:01:00]} 6. d3 {[%emt 0:03:47]} Nge7 {[%emt 0:00:39]} 7. Bd2 {[%emt 0:05:36]} O-O {[%emt 0:06:00]} 8. Rb1 {[%emt 0:06:29]} h6 {[%emt 0:13:22]} 9. a3 {[%emt 0:01:47]} d6 {[%emt 0:08:57]} 10. b4 {[%emt 0:01:10]} e5 {[%emt 0:07:30]} 11. O-O {[%emt 0:00:57]} Rb8 {[%emt 0:02:14]} 12. Ne1 {[%emt 0:10:19]} b6 {[%emt 0:06:55]} 13. Nc2 {[%emt 0:03:23]} Be6 {[%emt 0:03:29]} 14. Ne3 {[%emt 0:02:18]} Qd7 {[%emt 0:02:53]} 15. Ned5 {[%emt 0:00:35]} f5 {[%emt 0:03:03]} 16. b5 {[%emt 0:11:16]} Nd8 {[%emt 0:03:17]} 17. a4 {[%emt 0:00:26]} f4 {[%emt 0:03:05]} 18. Nxe7+ {[%emt 0:07:14]} Qxe7 {[%emt 0:00:08]} 19. Nd5 {[%emt 0:00:06]} Bxd5 {[%emt 0:02:00]} 20. Bxd5+ {[%emt 0:00:16]} Kh7 {[%emt 0:01:01]} 21. e3 {[%emt 0:08:28]} fxg3 {[%emt 0:03:08]} 22. hxg3 {[%emt 0:04:11]} Ne6 {[%emt 0:04:14]} 23. Qg4 {[%emt 0:02:16]} Rf6 {[%emt 0:01:09]} 24. f4 {[%emt 0:04:27]} Rbf8 {[%emt 0:02:36]} 25. Bc3 {[%emt 0:12:49]} Nc7 {[%emt 0:00:40]} 26. Be4 {[%emt 0:00:16]} Qe6 {[%emt 0:01:03]} 27. Qh4 {[%emt 0:02:41]} R6f7 {[%emt 0:01:52]} 28. Qh1 {[%emt 0:05:25]} exf4 {[%emt 0:07:03]} 29. Bxg7 {[%emt 0:00:06]} Kxg7 {[%emt 0:00:20]} 30. gxf4 {[%emt 0:00:28]} Rd8 {[%emt 0:02:19]} 31. Qg2 {[%emt 0:00:54]} Kh7 {[%emt 0:01:42]} 32. Rf3 {[%emt 0:00:28]} d5 {[%emt 0:00:33]} 33. cxd5 {[%emt 0:00:17]} Nxd5 {[%emt 0:00:07]} 34. Rg3 {[%emt 0:00:19]} Ne7 {[%emt 0:00:22]} 35. Kh2 {[%emt 0:03:05]} Nf5 {[%emt 0:01:18]} 36. Bxf5 {[%emt 0:00:34]} Rxf5 {[%emt 0:01:16]} 37. Qe4 {[%emt 0:00:23]} Qa2+ {[%emt 0:02:43]} 38. Rg2 {[%emt 0:00:11]} Rh5+ {[%emt 0:01:30]} 39. Kg3 {[%emt 0:00:01]} Qf7 {[%emt 0:00:17]} 40. Rbg1 {[%emt 0:01:12]} Rhd5 {[%emt 0:34:22]} 41. Kf3 {[%emt 0:30:52]} R5d6 {[%emt 0:00:58]} 42. Rxg6 {[%emt 0:01:48]} Rxg6 {[%emt 0:00:00]} 43. Rxg6 {[%emt 0:00:00]} Qxg6 {[%emt 0:00:00]} 44. Qe7+ {[%emt 0:00:00]} Qg7 {[%emt 0:00:00]} 45. Qxd8 {[%emt 0:00:00]} Qf7 {[%emt 0:00:00]} 46. e4 {[%emt 0:00:00]} c4 {[%emt 0:00:00]} 47. dxc4 {[%emt 0:00:00]} Qxc4 {[%emt 0:00:00]} 48. Qd7+ {[%emt 0:00:00]} Kh8 {[%emt 0:00:00]} 49. Qe8+ {[%emt 0:00:00]} Kh7 {[%emt 0:00:00]} 50. Kg4 {[%emt 0:00:14]} Qf1 {[%emt 0:00:00]} 51. Qf7+ {[%emt 0:02:25]} Kh8 {[%emt 0:00:00]} 52. Qf6+ {[%emt 0:00:48]} Kh7 {[%emt 0:00:00]} 53. Qe7+ {[%emt 0:00:02]} Kg8 {[%emt 0:00:00]} 54. Qd8+ {[%emt 0:00:06]} Kg7 {[%emt 0:00:00]} 55. Qc7+ {[%emt 0:00:04]} Kg8 {[%emt 0:00:00]} 56. Qb8+ {[%emt 0:00:11]} Kg7 {[%emt 0:00:00]} 57. Qxa7+ {[%emt 0:00:04]} Kg8 {[%emt 0:00:00]} 58. Qb8+ {[%emt 0:01:36]} Kg7 {[%emt 0:00:00]} 59. Qc7+ {[%emt 0:00:22]} Kg8 {[%emt 0:00:00]} 60. Kf5 {[%emt 0:02:11]} Qh3+ {[%emt 0:00:00]} 61. Ke5 {[%emt 0:00:48]} Qh5+ {[%emt 0:00:00]} 62. Ke6 {[%emt 0:00:21]} Qg6+ {[%emt 0:00:00]} 63. Kd5 {[%emt 0:00:20]} h5 {[%emt 0:00:00]} 64. Qd8+ {[%emt 0:00:31]} Kf7 {[%emt 0:00:00]} 65. Qd7+ {[%emt 0:00:10]} Kf8 {[%emt 0:00:00]} 66. f5 {[%emt 0:00:34]} Qg4 {[%emt 0:00:00]} 67. Qd8+ {[%emt 0:00:35]} Kf7 {[%emt 0:00:00]} 68. Qc7+ {[%emt 0:00:04]} Kf8 {[%emt 0:00:00]} 69. Qb8+ {[%emt 0:00:38]} Kf7 {[%emt 0:00:00]} 70. Qb7+ {[%emt 0:00:02]} Kf8 {[%emt 0:00:00]} 71. Ke6 {[%emt 0:00:18]} Qg8+ {[%emt 0:00:00]} 72. Kf6 {[%emt 0:00:35]} Qh8+ {[%emt 0:00:00]} 73. Kg6 {[%emt 0:00:18]} Qg8+ {[%emt 0:00:00]} 74. Kxh5 {[%emt 0:00:15]} Qh8+ {[%emt 0:00:00]} 75. Kg5 {[%emt 0:01:18]} Qg8+ {[%emt 0:00:04]} 76. Kf4 {[%emt 0:00:57]} Qa2 {[%emt 0:01:39]} 77. Qc8+ {[%emt 0:00:13]} Kg7 {[%emt 0:00:14]} 78. Qd7+ {[%emt 0:00:10]} Kh8 {[%emt 0:00:13]} 79. Ke5 {[%emt 0:00:48]} Qh2+ {[%emt 0:01:27]} 80. Ke6 {[%emt 0:00:33]} Qh1 {[%emt 0:00:39]} 81. e5 {[%emt 0:00:33]} Qh3 {[%emt 0:00:52]} 82. Ke7 {[%emt 0:00:56]} Qh4+ {[%emt 0:00:51]} 83. f6 {[%emt 0:00:11]} Qh7+ {[%emt 0:00:41]} 84. Kd8 {[%emt 0:00:15]} Qf7 {[%emt 0:01:16]} 85. Qe8+ {[%emt 0:00:29]} 1-0

[Event "WSCC 65 Open 2017"]
[Site "?"]
[Date "2017.11.18"]
[Round "10"]
[White "Certek, Pavel"]
[Black "Jhunjhnuwala, Krishan"]
[Result "1/2-1/2"]
[ECO "D32"]
[WhiteElo "2295"]
[BlackElo "2340"]
[PlyCount "53"]
[EventDate "2017.??.??"]
[EventType "swiss"]
[EventCountry "ITA"]
[SourceTitle "Acqui Terme"]
[TimeControl "40/5400+30:1800+30"]
[WhiteClock "0:24:29"]
[BlackClock "0:25:32"]

1. d4 {[%emt 0:00:06]} d5 {[%emt 0:00:10]} 2. c4 {[%emt 0:00:06]} e6 {[%emt 0:00:10]} 3. Nc3 {[%emt 0:00:23]} c5 {[%emt 0:00:19]} 4. e3 {[%emt 0:00:17]} Nf6 {[%emt 0:01:11]} 5. Nf3 {[%emt 0:00:36]} Nc6 {[%emt 0:02:01]} 6. a3 {[%emt 0:02:55]} cxd4 {[%emt 0:03:48]} 7. exd4 {[%emt 0:04:15]} dxc4 {[%emt 0:01:43]} 8. Bxc4 {[%emt 0:00:45]} Be7 {[%emt 0:00:24]} 9. O-O {[%emt 0:01:43]} O-O {[%emt 0:00:27]} 10. Be3 {[%emt 0:08:16]} a6 {[%emt 0:01:42]} 11. Rc1 {[%emt 0:11:16]} b5 {[%emt 0:05:15]} 12. Ba2 {[%emt 0:07:16]} Bb7 {[%emt 0:03:56]} 13. d5 {[%emt 0:05:28]} exd5 {[%emt 0:02:33]} 14. Nxd5 {[%emt 0:00:15]} Nxd5 {[%emt 0:03:46]} 15. Bxd5 {[%emt 0:02:10]} Rc8 {[%emt 0:05:03]} 16. Ne5 {[%emt 0:06:58]} Nxe5 {[%emt 0:11:50]} 17. Bxb7 {[%emt 0:01:55]} Rxc1 {[%emt 0:03:52]} 18. Qxc1 {[%emt 0:00:33]} Nc4 {[%emt 0:05:05]} 19. Bxa6 {[%emt 0:08:26]} Qd7 {[%emt 0:04:13]} 20. a4 {[%emt 0:02:49]} Nxe3 {[%emt 0:10:45]} 21. Qxe3 {[%emt 0:00:54]} bxa4 {[%emt 0:00:32]} 22. Qb6 {[%emt 0:07:10]} Bf6 {[%emt 0:02:25]} 23. Bb5 {[%emt 0:01:11]} Qd4 {[%emt 0:04:55]} 24. Qxd4 {[%emt 0:01:55]} Bxd4 {[%emt 0:00:04]} 25. Bxa4 {[%emt 0:00:06]} Bxb2 {[%emt 0:00:18]} 26. Rb1 {[%emt 0:00:47]} Rc8 {[%emt 0:01:31]} 27. g3 {[%emt 0:00:30]} 1/2-1/2

[Event "WSCC 65 Open 2017"]
[Site "?"]
[Date "2017.11.18"]
[Round "10"]
[White "Mannion, Stephen R"]
[Black "Vebic, Kasem"]
[Result "1-0"]
[ECO "C64"]
[WhiteElo "2294"]
[BlackElo "2118"]
[PlyCount "47"]
[EventDate "2017.??.??"]
[EventType "swiss"]
[EventCountry "ITA"]
[SourceTitle "Acqui Terme"]
[TimeControl "40/5400+30:1800+30"]
[WhiteClock "0:36:03"]
[BlackClock "0:50:23"]

1. e4 {[%emt 0:00:00]} e5 {[%emt 0:00:56]} 2. Nf3 {[%emt 0:00:00]} Nc6 {[%emt 0:00:21]} 3. Bb5 {[%emt 0:00:00]} Bc5 {[%emt 0:01:02]} 4. O-O {[%emt 0:00:00]} Qf6 {[%emt 0:02:26]} 5. Nc3 {[%emt 0:04:42]} Nge7 {[%emt 0:00:27]} 6. Nd5 {[%emt 0:11:39]} Nxd5 {[%emt 0:05:36]} 7. exd5 {[%emt 0:00:03]} Ne7 {[%emt 0:05:36]} 8. Qe2 {[%emt 0:01:04]} a6 {[%emt 0:02:27]} 9. Ba4 {[%emt 0:01:25]} b5 {[%emt 0:01:04]} 10. Bb3 {[%emt 0:00:10]} d6 {[%emt 0:02:55]} 11. d4 {[%emt 0:01:55]} Bb6 {[%emt 0:01:17]} 12. Bg5 {[%emt 0:03:10]} Qf5 {[%emt 0:00:58]} 13. dxe5 {[%emt 0:01:29]} dxe5 {[%emt 0:00:26]} 14. Bxe7 {[%emt 0:09:28]} Kxe7 {[%emt 0:00:12]} 15. Nxe5 {[%emt 0:00:09]} Kf6 {[%emt 0:03:01]} 16. Rae1 {[%emt 0:04:25]} Bc5 {[%emt 0:02:03]} 17. Kh1 {[%emt 0:05:01]} h5 {[%emt 0:04:11]} 18. c3 {[%emt 0:04:26]} Bd6 {[%emt 0:01:01]} 19. f4 {[%emt 0:01:02]} Qh7 {[%emt 0:00:59]} 20. Qf2 {[%emt 0:02:49]} h4 {[%emt 0:08:38]} 21. Bc2 {[%emt 0:10:06]} g6 {[%emt 0:03:33]} 22. Qd4 {[%emt 0:02:09]} Kg7 {[%emt 0:01:12]} 23. Ng4+ {[%emt 0:00:20]} Kf8 {[%emt 0:01:16]} 24. Nf6 {[%emt 0:00:25]} 1-0